fUSD/lending_fUSD_20250507
["ID","MTS","AMOUNT","RATE_DAILY","PERIOD"]
[360186327,1746609042545,-450.0,0.00019521,2]
[360186328,1746609042554,-500.0,0.00019521,2]
[360186329,1746609042564,-450.0,0.00019521,2]
[360186330,1746609042575,-450.0,0.00019521,2]
[360186331,1746609042584,-450.0,0.00019521,2]
[360186332,1746609042593,-450.0,0.00019521,2]
[360186333,1746609042603,-450.0,0.00019521,2]
[360186334,1746609042612,-450.0,0.00019521,2]
[360186335,1746609042621,-450.0,0.00019521,2]
[360186336,1746609042630,-450.0,0.00019521,2]
[360186337,1746609042640,-18806.02,0.00019521,2]
[360186338,1746609042649,-450.0,0.00019521,2]
[360186339,1746609042658,-867.86,0.00019521,2]
[360186340,1746609042667,-450.0,0.00019521,2]
[360186341,1746609042677,-450.0,0.00019521,2]
[360186342,1746609042686,-450.0,0.00019521,2]
[360186343,1746609042695,-450.0,0.00019521,2]
[360186344,1746609042704,-450.0,0.00019521,2]
[360186345,1746609042714,-450.0,0.00019521,2]
[360186346,1746609042723,-6886.71,0.00019521,2]
[360186347,1746609042732,-450.0,0.00019521,2]
[360186348,1746609042742,-450.0,0.00019521,2]
[360186349,1746609042752,-450.0,0.00019521,2]
[360186350,1746609042761,-450.0,0.00019521,2]
[360186351,1746609042770,-574.54248489,0.00019521,2]
[360186352,1746609042779,-450.0,0.00019521,2]
[360186353,1746609042789,-450.0,0.00019521,2]
[360186354,1746609042798,-450.0,0.00019521,2]
[360186355,1746609042808,-1307.9,0.00019521,2]
[360186356,1746609042817,-450.0,0.00019521,2]
[360186357,1746609042826,-450.0,0.00019521,2]
[360186358,1746609042835,-226.15070798,0.00019521,2]
[360186359,1746609042845,-450.0,0.00019521,2]
[360186360,1746609042853,-450.0,0.00019521,2]
[360186361,1746609042862,-535.74070061,0.00019521,2]
[360186362,1746609042872,-1641.0,0.00019521,2]
[360186363,1746609042881,-1089.09,0.00019521,2]
[360186364,1746609042890,-461.68,0.00019521,2]
[360186365,1746609042899,-450.0,0.00019521,2]
[360186366,1746609042908,-450.0,0.00019521,2]
[360186367,1746609042918,-450.0,0.00019521,2]
[360186368,1746609042927,-1591.4,0.00019521,2]
[360186369,1746609042936,-450.0,0.00019521,2]
[360186370,1746609042945,-2068.0,0.00019521,2]
[360186371,1746609042954,-450.0,0.00019521,2]
[360186372,1746609042963,-450.0,0.00019521,2]
[360186373,1746609042973,-450.0,0.00019521,2]
[360186374,1746609042982,-450.0,0.00019521,2]
[360186375,1746609042991,-450.0,0.00019521,2]
[360186376,1746609043001,-340.36777698,0.00019521,2]
[360186377,1746609043010,-865.608865,0.00019521,2]
[360186378,1746609043019,-1284.16,0.00019521,2]
[360186379,1746609043028,-450.0,0.00019521,2]
[360186380,1746609043038,-450.0,0.00019521,2]
[360186381,1746609043047,-450.0,0.00019521,2]
[360186382,1746609043057,-450.0,0.00019521,2]
[360186383,1746609043066,-450.0,0.00019521,2]
[360186384,1746609043076,-1263.47,0.00019521,2]
[360186385,1746609043085,-197.67838666,0.00019521,2]
[360186386,1746609043094,-450.0,0.00019521,2]
[360186387,1746609043104,-450.0,0.00019521,2]
[360186388,1746609043113,-450.0,0.00019521,2]
[360186389,1746609043122,-673.3,0.00019521,2]
[360186391,1746609043131,-1381.13,0.00019521,2]
[360186392,1746609043141,-1988.990205,0.00019521,2]
[360186393,1746609043150,-450.0,0.00019521,2]
[360186394,1746609043159,-450.0,0.00019521,2]
[360186396,1746609043168,-450.0,0.00019521,2]
[360186397,1746609043177,-450.0,0.00019521,2]
[360186398,1746609043186,-450.0,0.00019521,2]
[360186399,1746609043195,-450.0,0.00019521,2]
[360186400,1746609043204,-450.0,0.00019521,2]
[360186401,1746609043214,-450.0,0.00019521,2]
[360186402,1746609043223,-178.04704092,0.00019521,2]
[360186403,1746609043233,-450.0,0.00019521,2]
[360186404,1746609043242,-1709.04,0.00019521,2]
[360186405,1746609043251,-782.97,0.00019521,2]
[360186406,1746609043263,-450.0,0.00019521,2]
[360186407,1746609043272,-450.0,0.00019521,2]
[360186409,1746609043282,-489.28022793,0.00019521,2]
[360186411,1746609043292,-1320.516,0.00019522,2]
[360186413,1746609043301,-1000.0,0.00019522,2]
[360186415,1746609043310,-1000.0,0.00019522,2]
[360186417,1746609043319,-1000.0,0.00019522,2]
[360186419,1746609043328,-1000.0,0.00019522,2]
[360186421,1746609043336,-1000.0,0.00019522,2]
[360186423,1746609043346,-1000.0,0.00019522,2]
[360186424,1746609043355,-1072.0,0.00019522,2]
[360186426,1746609043364,-289.32815742,0.00019522,2]
[360186428,1746609043373,-500.0,0.00019522,2]
[360186429,1746609043383,-450.0,0.00019522,2]
[360186430,1746609043393,-450.0,0.00019522,2]
[360186432,1746609043402,-450.0,0.00019522,2]
[360186433,1746609043412,-450.0,0.00019522,2]
[360186434,1746609043422,-450.0,0.00019522,2]
[360186435,1746609043431,-593.15258226,0.00019522,2]
[360186436,1746609043441,-224.92581496,0.00019522,2]
[360186437,1746609043450,-450.0,0.00019522,2]
[360186438,1746609043459,-450.0,0.00019522,2]
[360186439,1746609043469,-450.0,0.00019522,2]
[360186440,1746609043478,-450.0,0.00019522,2]
[360186441,1746609043487,-450.0,0.00019522,2]
[360186442,1746609043496,-450.0,0.00019522,2]
[360186443,1746609043505,-400.0,0.00019522,2]
[360186444,1746609043513,-450.0,0.00019522,2]
[360186445,1746609043522,-500.0,0.00019522,2]
[360186446,1746609043532,-467.23,0.00019522,2]
[360186447,1746609043541,-450.0,0.00019522,2]
[360186448,1746609043550,-450.0,0.00019522,2]
[360186449,1746609043559,-450.0,0.00019522,2]
[360186450,1746609043569,-450.0,0.00019522,2]
[360186451,1746609043579,-450.0,0.00019522,2]
[360186452,1746609043588,-450.0,0.00019522,2]
[360186453,1746609043597,-450.0,0.00019522,2]
[360186454,1746609043606,-450.0,0.00019522,2]
[360186455,1746609043615,-450.0,0.00019522,2]
[360186456,1746609043624,-876.72,0.00019522,2]
[360186457,1746609043633,-450.0,0.00019522,2]
[360186458,1746609043643,-450.0,0.00019522,2]
[360186459,1746609043651,-758.41,0.00019522,2]
[360186460,1746609043660,-450.0,0.00019522,2]
[360186461,1746609043669,-450.0,0.00019522,2]
[360186462,1746609043678,-450.0,0.00019522,2]
[360186463,1746609043688,-450.0,0.00019522,2]
[360186464,1746609043697,-450.0,0.00019522,2]
[360186465,1746609043706,-450.0,0.00019522,2]
[360186466,1746609043716,-450.0,0.00019522,2]
[360186467,1746609043725,-450.0,0.00019522,2]
[360186468,1746609043735,-450.0,0.00019522,2]
[360186469,1746609043744,-620.64,0.00019522,2]
[360186470,1746609043754,-620.64,0.00019522,2]
[360186471,1746609043763,-525.66,0.00019522,2]
[360186472,1746609043773,-450.0,0.00019522,2]
[360186473,1746609043782,-469.03480055,0.00019522,2]
[360186474,1746609043791,-450.0,0.00019522,2]
[360186475,1746609043801,-450.0,0.00019522,2]
[360186476,1746609043811,-450.0,0.00019522,2]
[360186477,1746609043820,-450.0,0.00019522,2]
[360186478,1746609043830,-450.0,0.00019522,2]
[360186480,1746609043839,-450.0,0.00019522,2]
[360186481,1746609044042,-450.0,0.00019522,2]
[360186482,1746609044052,-450.0,0.00019522,2]
[360186483,1746609044061,-450.0,0.00019522,2]
[360186484,1746609044070,-450.0,0.00019522,2]
[360186485,1746609044080,-326.05884474,0.00019522,2]
[360186486,1746609044089,-493.68,0.00019522,2]
[360186487,1746609044099,-450.0,0.00019522,2]
[360186488,1746609044108,-450.0,0.00019522,2]
[360186489,1746609044118,-450.0,0.00019522,2]
[360186490,1746609044127,-450.0,0.00019522,2]
[360186491,1746609044136,-450.0,0.00019522,2]
[360186492,1746609044146,-450.0,0.00019522,2]
[360186493,1746609044155,-450.0,0.00019522,2]
[360186494,1746609044165,-450.0,0.00019522,2]
[360186495,1746609044174,-450.0,0.00019522,2]
[360186496,1746609044184,-450.0,0.00019522,2]
[360186497,1746609044194,-450.0,0.00019522,2]
[360186498,1746609044204,-399.08563934,0.00019522,2]
[360186499,1746609044213,-386.74,0.00019522,2]
[360186500,1746609044223,-450.0,0.00019522,2]
[360186501,1746609044236,-450.0,0.00019522,2]
[360186502,1746609044248,-530.0,0.00019522,2]
[360186503,1746609044259,-450.0,0.00019522,2]
[360186504,1746609044272,-450.0,0.00019522,2]
[360186505,1746609044281,-450.0,0.00019522,2]
[360186506,1746609044290,-451.91301683,0.00019522,2]
[360186507,1746609044299,-450.0,0.00019522,2]
[360186508,1746609044310,-450.0,0.00019522,2]
[360186509,1746609044320,-450.0,0.00019522,2]
[360186510,1746609044329,-450.0,0.00019522,2]
[360186511,1746609044340,-450.0,0.00019522,2]
[360186512,1746609044349,-450.0,0.00019522,2]
[360186513,1746609044359,-450.0,0.00019522,2]
[360186514,1746609044368,-450.0,0.00019522,2]
[360186515,1746609044378,-438.57668125,0.00019522,2]
[360186516,1746609044387,-450.0,0.00019522,2]
[360186517,1746609044397,-450.0,0.00019522,2]
[360186518,1746609044406,-450.0,0.00019522,2]
[360186519,1746609044416,-450.0,0.00019522,2]
[360186520,1746609044425,-543.12013927,0.00019522,2]
[360186521,1746609044435,-450.0,0.00019522,2]
[360186522,1746609044444,-478.26393022,0.00019522,2]
[360186523,1746609044453,-450.0,0.00019522,2]
[360186524,1746609044463,-450.0,0.00019522,2]
[360186525,1746609044472,-450.0,0.00019522,2]
[360186526,1746609044482,-450.0,0.00019522,2]
[360186527,1746609044491,-466.45391188,0.00019522,2]
[360186528,1746609044500,-450.0,0.00019522,2]
[360186529,1746609044510,-450.0,0.00019522,2]
[360186530,1746609044519,-450.0,0.00019522,2]
[360186531,1746609044528,-464.13138,0.00019522,2]
[360186532,1746609044538,-450.0,0.00019522,2]
[360186533,1746609044548,-450.0,0.00019522,2]
[360186534,1746609044558,-450.0,0.00019522,2]
[360186535,1746609044568,-450.0,0.00019522,2]
[360186536,1746609044577,-450.0,0.00019522,2]
[360186537,1746609044587,-450.0,0.00019522,2]
[360186538,1746609044597,-450.0,0.00019522,2]
[360186539,1746609044606,-450.0,0.00019522,2]
[360186540,1746609044616,-450.0,0.00019522,2]
[360186541,1746609044626,-450.0,0.00019522,2]
[360186542,1746609044635,-450.0,0.00019522,2]
[360186543,1746609044645,-476.01624641,0.00019522,2]
[360186544,1746609044654,-450.0,0.00019522,2]
[360186545,1746609044664,-450.0,0.00019522,2]
[360186546,1746609044674,-450.0,0.00019522,2]
[360186547,1746609044684,-450.0,0.00019522,2]
[360186548,1746609044693,-450.0,0.00019522,2]
[360186549,1746609044703,-450.0,0.00019522,2]
[360186550,1746609044712,-450.0,0.00019522,2]
[360186551,1746609044722,-450.0,0.00019522,2]
[360186552,1746609044731,-450.0,0.00019522,2]
[360186553,1746609044740,-450.0,0.00019522,2]
[360186554,1746609044750,-450.0,0.00019522,2]
[360186555,1746609044759,-450.0,0.00019522,2]
[360186556,1746609044768,-465.51900667,0.00019522,2]
[360186557,1746609044778,-450.0,0.00019522,2]
[360186558,1746609044787,-450.0,0.00019522,2]
[360186559,1746609044797,-450.0,0.00019522,2]
[360186560,1746609044806,-450.0,0.00019522,2]
[360186561,1746609044816,-450.0,0.00019522,2]
[360186562,1746609044825,-450.0,0.00019522,2]
[360186563,1746609044834,-450.0,0.00019522,2]
[360186564,1746609044844,-450.0,0.00019522,2]
[360186565,1746609044853,-450.0,0.00019522,2]
[360186566,1746609044863,-450.0,0.00019522,2]
[360186567,1746609044872,-450.0,0.00019522,2]
[360186568,1746609044882,-450.0,0.00019522,2]
[360186569,1746609044891,-627.66,0.00019522,2]
[360186570,1746609044901,-488.58946446,0.00019522,2]
[360186571,1746609044911,-450.0,0.00019522,2]
[360186572,1746609044920,-554.75,0.00019522,2]
[360186573,1746609044931,-450.0,0.00019522,2]
[360186574,1746609044940,-457.81131975,0.00019522,2]
[360186575,1746609044950,-879.17,0.00019522,2]
[360186576,1746609044959,-879.17,0.00019522,2]
[360186577,1746609044968,-450.0,0.00019522,2]
[360186578,1746609044977,-745.64,0.00019522,2]
[360186579,1746609044986,-745.64,0.00019522,2]
[360186580,1746609044996,-450.0,0.00019522,2]
[360186581,1746609045006,-450.0,0.00019522,2]
[360186582,1746609045015,-450.0,0.00019522,2]
[360186583,1746609045024,-450.0,0.00019522,2]
[360186584,1746609045033,-450.0,0.00019522,2]
[360186585,1746609045043,-450.0,0.00019522,2]
[360186586,1746609045052,-935.25,0.00019522,2]
[360186587,1746609045061,-935.25,0.00019522,2]
[360186588,1746609045070,-461.21517517,0.00019522,2]
[360186589,1746609045080,-1070.47,0.00019522,2]
[360186590,1746609045089,-1070.47,0.00019522,2]
[360186591,1746609045098,-450.0,0.00019522,2]
[360186592,1746609045107,-450.0,0.00019522,2]
[360186593,1746609045116,-538.26,0.00019522,2]
[360186594,1746609045125,-494.55,0.00019522,2]
[360186595,1746609045134,-494.55,0.00019522,2]
[360186596,1746609045143,-549.87,0.00019522,2]
[360186597,1746609045152,-450.0,0.00019522,2]
[360186598,1746609045161,-450.0,0.00019522,2]
[360186599,1746609045171,-417.96315736,0.00019522,2]
[360186600,1746609045180,-450.0,0.00019522,2]
[360186601,1746609045190,-183.48271683,0.00019522,2]
[360186602,1746609045199,-450.0,0.00019522,2]
[360186603,1746609045209,-660.58,0.00019522,2]
[360186604,1746609045218,-660.58,0.00019522,2]
[360186605,1746609045228,-450.0,0.00019522,2]
[360186606,1746609045237,-450.0,0.00019522,2]
[360186607,1746609045247,-450.0,0.00019522,2]
[360186608,1746609045257,-450.0,0.00019522,2]
[360186609,1746609045268,-450.0,0.00019522,2]
[360186610,1746609045278,-450.0,0.00019522,2]
[360186611,1746609045287,-1118.27,0.00019522,2]
[360186612,1746609045298,-1118.27,0.00019522,2]
[360186613,1746609045308,-450.0,0.00019522,2]
[360186614,1746609045318,-720.19,0.00019522,2]
[360186615,1746609045327,-720.19,0.00019522,2]
[360186616,1746609045336,-450.0,0.00019522,2]
[360186617,1746609045345,-1650.49,0.00019522,2]
[360186618,1746609045355,-1746.21,0.00019522,2]
[360186619,1746609045364,-697.38,0.00019522,2]
[360186620,1746609045374,-697.38,0.00019522,2]
[360186621,1746609045383,-442.99,0.00019522,2]
[360186622,1746609045392,-1123.63,0.00019522,2]
[360186623,1746609045402,-450.0,0.00019522,2]
[360186624,1746609045411,-488.91219909,0.00019522,2]
[360186625,1746609045420,-450.0,0.00019522,2]
[360186626,1746609045430,-615.58,0.00019522,2]
[360186627,1746609045439,-450.0,0.00019522,2]
[360186628,1746609045448,-450.0,0.00019522,2]
[360186629,1746609045458,-450.0,0.00019522,2]
[360186630,1746609045467,-467.14,0.00019522,2]
[360186631,1746609045477,-450.0,0.00019522,2]
[360186632,1746609045486,-450.0,0.00019522,2]
[360186633,1746609045495,-450.0,0.00019522,2]
[360186634,1746609045505,-450.0,0.00019522,2]
[360186635,1746609045515,-450.0,0.00019522,2]
[360186636,1746609045525,-418.70387019,0.00019522,2]
[360186637,1746609045534,-450.0,0.00019522,2]
[360186638,1746609045544,-450.0,0.00019522,2]
[360186639,1746609045553,-450.0,0.00019522,2]
[360186640,1746609045562,-450.0,0.00019522,2]
[360186641,1746609045573,-450.0,0.00019522,2]
[360186642,1746609045582,-2378.81,0.00019522,2]
[360186643,1746609045592,-450.0,0.00019522,2]
[360186644,1746609045601,-450.0,0.00019522,2]
[360186645,1746609045610,-834.76,0.00019522,2]
[360186646,1746609045620,-450.0,0.00019522,2]
[360186647,1746609045629,-450.0,0.00019522,2]
[360186648,1746609045639,-718.07,0.00019522,2]
[360186649,1746609045648,-450.0,0.00019522,2]
[360186650,1746609045657,-450.0,0.00019522,2]
[360186651,1746609045667,-450.0,0.00019522,2]
[360186652,1746609045676,-450.0,0.00019522,2]
[360186653,1746609045685,-450.0,0.00019522,2]
[360186654,1746609045695,-657.71,0.00019522,2]
[360186655,1746609045704,-657.71,0.00019522,2]
[360186656,1746609045713,-450.0,0.00019522,2]
[360186657,1746609045724,-450.0,0.00019522,2]
[360186658,1746609045734,-791.77,0.00019522,2]
[360186659,1746609045743,-394.05306978,0.00019522,2]
[360186660,1746609045752,-450.0,0.00019522,2]
[360186661,1746609045762,-450.0,0.00019522,2]
[360186662,1746609045771,-450.0,0.00019522,2]
[360186663,1746609045780,-450.0,0.00019522,2]
[360186664,1746609045789,-450.0,0.00019522,2]
[360186665,1746609045799,-450.0,0.00019522,2]
[360186666,1746609045808,-450.0,0.00019522,2]
[360186667,1746609045819,-450.0,0.00019522,2]
[360186668,1746609045829,-450.0,0.00019522,2]
[360186669,1746609045838,-450.0,0.00019522,2]
[360186670,1746609045848,-450.0,0.00019522,2]
[360186671,1746609045857,-450.0,0.00019522,2]
[360186672,1746609045867,-450.0,0.00019522,2]
[360186673,1746609045876,-1113.33,0.00019522,2]
[360186674,1746609045885,-450.0,0.00019522,2]
[360186675,1746609045895,-450.0,0.00019522,2]
[360186676,1746609045904,-451.22,0.00019522,2]
[360186677,1746609045913,-450.0,0.00019522,2]
[360186678,1746609045923,-527.85,0.00019522,2]
[360186679,1746609045933,-1120.41,0.00019522,2]
[360186680,1746609045943,-450.0,0.00019522,2]
[360186681,1746609045952,-500.0,0.00019522,2]
[360186682,1746609045961,-500.0,0.00019522,2]
[360186683,1746609045971,-560.14,0.00019522,2]
[360186684,1746609045981,-450.0,0.00019522,2]
[360186685,1746609045990,-450.0,0.00019522,2]
[360186686,1746609045999,-72871.9,0.00019522,2]
[360186687,1746609046008,-450.0,0.00019522,2]
[360186688,1746609046018,-450.0,0.00019522,2]
[360186689,1746609046027,-450.0,0.00019522,2]
[360186690,1746609046037,-450.0,0.00019522,2]
[360186691,1746609046047,-500.0,0.00019522,2]
[360186692,1746609046056,-450.0,0.00019522,2]
[360186693,1746609046065,-450.0,0.00019522,2]
[360186694,1746609046075,-450.0,0.00019522,2]
[360186695,1746609046085,-450.0,0.00019522,2]
[360186696,1746609046093,-450.0,0.00019522,2]
[360186697,1746609046103,-536.74889644,0.00019522,2]
[360186698,1746609046112,-867.86,0.00019522,2]
[360186699,1746609046122,-450.0,0.00019522,2]
[360186700,1746609046132,-450.0,0.00019522,2]
[360186701,1746609046141,-450.0,0.00019522,2]
[360186702,1746609046151,-450.0,0.00019522,2]
[360186704,1746609046160,-537.64366022,0.00019522,2]
[360186705,1746609046169,-450.0,0.00019522,2]
[360186706,1746609046179,-450.0,0.00019522,2]
[360186707,1746609046189,-461.68,0.00019522,2]
[360186708,1746609046199,-450.0,0.00019522,2]
[360186709,1746609046208,-450.0,0.00019522,2]
[360186710,1746609046218,-1591.4,0.00019522,2]
[360186712,1746609046227,-2068.0,0.00019522,2]
[360186714,1746609046237,-450.0,0.00019522,2]
[360186715,1746609046247,-450.0,0.00019522,2]
[360186716,1746609046256,-1284.16,0.00019522,2]
[360186717,1746609046268,-450.0,0.00019522,2]
[360186718,1746609046278,-450.0,0.00019522,2]
[360186719,1746609046288,-450.0,0.00019522,2]
[360186720,1746609046297,-1263.47,0.00019522,2]
[360186721,1746609046309,-1381.13,0.00019522,2]
[360186722,1746609046318,-450.0,0.00019522,2]
[360186723,1746609046328,-450.0,0.00019522,2]
[360186724,1746609046338,-450.0,0.00019522,2]
[360186725,1746609046404,-1709.04,0.00019522,2]
[360186726,1746609046414,-782.97,0.00019522,2]
[360186727,1746609046423,-450.0,0.00019522,2]
[360186728,1746609046434,-450.0,0.00019523,2]
[360186729,1746609046443,-545.22605936,0.00019523,2]
[360186730,1746609046452,-504.30703448,0.00019523,2]
[360186731,1746609046461,-467.23,0.00019523,2]
[360186732,1746609046471,-450.0,0.00019523,2]
[360186733,1746609046480,-450.0,0.00019523,2]
[360186734,1746609046490,-305.31817497,0.00019523,2]
[360186735,1746609046499,-876.72,0.00019523,2]
[360186736,1746609046508,-450.0,0.00019523,2]
[360186737,1746609046518,-758.41,0.00019523,2]
[360186738,1746609046526,-450.0,0.00019523,2]
[360186739,1746609046536,-450.0,0.00019523,2]
[360186740,1746609046545,-450.0,0.00019523,2]
[360186741,1746609046555,-450.0,0.00019523,2]
[360186742,1746609046565,-450.0,0.00019523,2]
[360186743,1746609046574,-525.66,0.00019523,2]
[360186744,1746609046585,-450.0,0.00019523,2]
[360186745,1746609046596,-450.0,0.00019523,2]
[360186746,1746609046605,-450.0,0.00019523,2]
[360186747,1746609046615,-450.0,0.00019523,2]
[360186748,1746609046624,-450.0,0.00019523,2]
[360186749,1746609046635,-450.0,0.00019523,2]
[360186750,1746609046644,-450.0,0.00019523,2]
[360186751,1746609046654,-450.0,0.00019523,2]
[360186752,1746609046663,-450.0,0.00019534,2]
[360186753,1746609046672,-450.0,0.00019534,2]
[360186754,1746609046681,-450.0,0.00019534,2]
[360186755,1746609046691,-450.0,0.00019534,2]
[360186756,1746609046699,-450.0,0.00019534,2]
[360186757,1746609046708,-432.38084859,0.00019534,2]
[360186758,1746609046717,-450.0,0.00019534,2]
[360186759,1746609046728,-450.0,0.00019534,2]
[360186760,1746609046737,-450.0,0.00019534,2]
[360186761,1746609046747,-450.0,0.00019534,2]
[360186762,1746609046755,-242.75103394,0.00019534,2]
[360186763,1746609046764,-229.02836402,0.00019534,2]
[360186764,1746609046774,-221.73294233,0.00019534,2]
[360186765,1746609046783,-195.48861202,0.00019534,2]
[360186766,1746609046791,-177.18729359,0.00019534,2]
[360186767,1746609046800,-185.45736674,0.00019534,2]
[360186768,1746609046809,-500.0,0.00019534,2]
[360186769,1746609046818,-500.0,0.00019534,2]
[360186770,1746609046827,-500.0,0.00019534,2]
[360186771,1746609046837,-500.0,0.00019534,2]
[360186772,1746609046845,-500.0,0.00019534,2]
[360186773,1746609046854,-274.57491289,0.00019534,2]
[360186774,1746609046863,-500.0,0.00019534,2]
[360186775,1746609046872,-500.0,0.00019534,2]
[360186776,1746609046881,-500.0,0.00019534,2]
[360186777,1746609046890,-500.0,0.00019534,2]
[360186778,1746609046899,-500.0,0.00019534,2]
[360186779,1746609046908,-500.0,0.00019534,2]
[360186780,1746609046918,-500.0,0.00019534,2]
[360186781,1746609046928,-500.0,0.00019534,2]
[360186782,1746609046937,-450.0,0.00019534,2]
[360186783,1746609046945,-560.9,0.00019534,2]
[360186784,1746609046954,-450.0,0.00019534,2]
[360186785,1746609046963,-500.0,0.00019534,2]
[360186786,1746609046973,-500.0,0.00019534,2]
[360186787,1746609046981,-500.0,0.00019534,2]
[360186788,1746609046990,-450.0,0.00019534,2]
[360186789,1746609046999,-450.0,0.00019534,2]
[360186790,1746609047008,-450.0,0.00019534,2]
[360186791,1746609047018,-1053.16,0.00019534,2]
[360186792,1746609047027,-1984.43,0.00019534,2]
[360186793,1746609047036,-450.0,0.00019534,2]
[360186794,1746609047045,-450.0,0.00019534,2]
[360186795,1746609047054,-450.0,0.00019534,2]
[360186796,1746609047063,-450.0,0.00019534,2]
[360186797,1746609047072,-450.0,0.00019534,2]
[360186798,1746609047081,-1641.0,0.00019534,2]
[360186799,1746609047092,-450.0,0.00019534,2]
[360186800,1746609047102,-865.608865,0.00019534,2]
[360186801,1746609047111,-481.87940098,0.00019534,2]
[360186802,1746609047121,-1988.990205,0.00019534,2]
[360186803,1746609047130,-340.29081811,0.00019534,2]
[360186804,1746609047139,-450.0,0.00019534,2]
[360186805,1746609047149,-450.0,0.00019534,2]
[360186806,1746609047158,-450.0,0.00019534,2]
[360186807,1746609047168,-450.0,0.00019534,2]
[360186808,1746609047177,-450.0,0.00019534,2]
[360186809,1746609047186,-2532.96,0.00019535,2]
[360186810,1746609047196,-562.3,0.00019535,2]
[360186811,1746609047205,-450.0,0.00019535,2]
[360186812,1746609047214,-450.0,0.00019535,2]
[360186813,1746609047223,-1635.71,0.00019535,2]
[360186814,1746609047233,-450.0,0.00019535,2]
[360186815,1746609047243,-450.0,0.00019535,2]
[360186816,1746609047255,-526.09,0.00019535,2]
[360186817,1746609047270,-494.73,0.00019535,2]
[360186818,1746609047279,-450.0,0.00019535,2]
[360186819,1746609047289,-1810.53,0.00019535,2]
[360186820,1746609047299,-1664.61,0.00019535,2]
[360186821,1746609047308,-2137.38,0.00019535,2]
[360186822,1746609047318,-1935.57,0.00019535,2]
[360186823,1746609047327,-474.14,0.00019535,2]
[360186824,1746609047337,-3234.39,0.00019535,2]
[360186825,1746609047347,-36098.98,0.00019535,2]
[360186826,1746609047356,-450.0,0.00019535,2]
[360186827,1746609047366,-2514.58,0.00019535,2]
[360186828,1746609047375,-734.35,0.00019535,2]
[360186829,1746609047385,-9457.39,0.00019535,2]
[360186830,1746609047394,-450.0,0.00019535,2]
[360186831,1746609047404,-450.0,0.00019535,2]
[360186832,1746609047413,-837.83,0.00019535,2]
[360186833,1746609047423,-18806.02,0.00019535,2]
[360186834,1746609047433,-6886.71,0.00019535,2]
[360186835,1746609047442,-450.0,0.00019535,2]
[360186836,1746609047452,-1307.9,0.00019535,2]
[360186837,1746609047462,-1089.09,0.00019535,2]
[360186838,1746609047471,-450.0,0.00019535,2]
[360186839,1746609047481,-450.0,0.00019535,2]
[360186840,1746609047491,-673.3,0.00019535,2]
[360186841,1746609047501,-3228.703,0.0001954,2]
[360186842,1746609047510,-184.558,0.0001954,2]
[360186843,1746609047519,-927.0,0.00019564,2]